Cogmind - Beta 14 @@@ ROGUE MODE // 2024.12.24 @ 19:54:54 // Winter2021/Sauler Player: 7604 Result: Destroyed by as-29140 with Assembled Heavy Rifle Performance ------------- Evolutions (0) 0 Regions Visited (4) 800 Robots Destroyed (18) 90 Value Destroyed (482) 482 Prototype IDs (25) 500 Alien Tech Used (0) 0 Bonus (360) 360 TOTAL SCORE: 2232 Bonus ------- Follower Combat Kills 60 Aligned with FarCom 300 Cogmind --------- Core Integrity 0/250 Matter 227/300 Energy 52/100 System Corruption 7% Temperature Cool (38) Movement Walking (90) Location -9/Mines Parts ------- > --- POWER (1) -------- (None) > --- PROPULSION (2) --- Potential Leg Potential Leg > --- UTILITY (2) ------ Large Storage Unit > --- WEAPON (2) ------- Assault Rifle > --- INVENTORY (15) --- Light Ion Engine Light Nuclear Core Improved Heat Sink Small Storage Unit Structural Scanner Improved Terrain Scanner ECM Suite Propulsion Shielding Grenade Launcher Grenade Launcher Peak State ------------ > --- POWER ------------ Light Nuclear Core > --- PROPULSION ------- Potential Leg Potential Leg > --- UTILITY ---------- Improved Heat Sink Large Storage Unit > --- WEAPON ----------- Particle Gun Particle Gun > --- INVENTORY -------- Ion Engine Light Ion Engine Light Nuclear Core Light Treads Improved Heat Sink Small Storage Unit Structural Scanner Improved Terrain Scanner ECM Suite Propulsion Shielding Small Laser Beam Cannon Assault Rifle Grenade Launcher Grenade Launcher [Rating: 33] Favorites ----------- Power Ion Engine Engine Ion Engine Power Core Light Nuclear Core Propulsion Light Treads Treads Light Treads Leg Potential Leg Utility Large Storage Unit Device Improved Terrain Scanner Storage Large Storage Unit Weapon Assault Rifle Energy Gun Particle Gun Energy Cannon Beam Cannon Ballistic Gun Assault Rifle Launcher Grenade Launcher Build | -11 -10 -10 -10 -9 ------- Run | Yrd Mat Min Exi Min Slots Evolved . | . . . . . Power . | . . . . . Propulsion . | . . . . . Utility . | . . . . . Weapon . | . . . . . Parts Attached 23 | 7 3 7 2 4 Power 3 | 1 1 1 . . Engine 2 | 1 1 . . . Core 1 | . . 1 . . Reactor . | . . . . . Propulsion 6 | 2 1 1 2 . Treads 4 | 2 1 1 . . Leg 2 | . . . 2 . Wheel . | . . . . . Hover . | . . . . . Flight . | . . . . . Utility 5 | 2 1 2 . . Device 2 | 1 . 1 . . Storage 3 | 1 1 1 . . Processor . | . . . . . Hackware . | . . . . . Protection . | . . . . . Artifact . | . . . . . Weapon 9 | 2 . 3 . 4 Energy Gun 4 | . . 3 . 1 Energy Cannon 1 | . . . . 1 Ballistic Gun 3 | 2 . . . 1 Ballistic Cannon . | . . . . . Launcher 1 | . . . . 1 Special Weapon . | . . . . . Impact Weapon . | . . . . . Slashing Weapon . | . . . . . Piercing Weapon . | . . . . . Special Melee Weapon . | . . . . . Unidentified Prototypes . | . . . . . Parts Lost 7 | . . 1 . 6 Power 1 | . . . . 1 Propulsion 1 | . . 1 . . Utility 1 | . . . . 1 Weapon 4 | . . . . 4 Highest Loss Streak 6 | . . 1 . 6 To Critical Strikes . | . . . . . Average Slot Usage (%) 99 | . 100 99 100 82 Engine 9 | . 14 5 . . Core 4 | . . 8 14 5 Treads 26 | . 28 27 18 . Leg 1 | . . . 9 28 Device 13 | . 14 13 14 8 Storage 14 | . 14 14 14 14 Energy Gun 8 | . . 16 28 16 Ballistic Gun 19 | . 28 11 . . Peak Build Rating 33 | 9 10 15 33 32 Average Rating 11 | 4 9 12 20 26 On Entrance 13 | . 9 10 15 32 Naked Turns . | . . . . . Heaviest Build 32 | 15 30 32 32 32 Greatest Support 60 | 40 40 40 60 60 Greatest Overweight (x) 1 | . . . 1 . Average Overweight (x) . | . . . . . Largest Inventory Capacity 15 | 8 15 15 15 15 Average Capacity 13 | 7 12 15 15 15 Most Carried 15 | 2 14 15 15 13 Average Carried 10 | 1 7 14 13 12 Final Capacity 15 | 8 15 15 15 15 Final Carried 14 | 2 14 14 13 10 Class Distribution -------------------- 70% | Mutant 29% | Scavenger-Mutant Dominant Class ---------------- Mutant | -10/Materials Scavenger-Mutant | -10/Mines Scavenger-Mutant | -10/Exiles Scavenger-Mutant | -9/Mines Resources | -11 -10 -10 -10 -9 ----------- Run | Yrd Mat Min Exi Min Matter Collected 635 | 245 310 77 . 3 Remotely . | . . . . . Salvage Created 711 | 22 481 157 . 51 Parts 44 | 4 31 9 . . Haulers Intercepted 1 | . 1 . . . Recyclers Shooed . | . . . . . Parts Field Recycled . | . . . . . Retrieved Matter . | . . . . . Parts Self-Destructed . | . . . . . Prevented . | . . . . . Kills | -11 -10 -10 -10 -9 ------- Run | Yrd Mat Min Exi Min Combat Hostiles Destroyed 27 | . 9 4 . 14 Guns 13 | . 9 4 . . Cannons 1 | . . . . 1 AOE 13 | . . . . 13 Classes Destroyed 7 | 1 5 . . 1 Tunneler 1 | 1 . . . . Hauler 1 | . 1 . . . Recycler 1 | . 1 . . . Watcher 2 | . 2 . . . Swarmer 3 | . 3 . . . Grunt 10 | . 6 4 . . Assembled 14 | . . . . 14 Best Kill Streak 14 | 1 3 3 . 14 Combat Bots Only 14 | . 3 3 . 14 Max Kills in Single Turn 5 | 1 2 1 . 5 Gunslinging . | . . . . . Exploded 5 | . . . . 5 Melee . | . . . . . Uniques/NPCs Destroyed . | . . . . . Combat | -11 -10 -10 -10 -9 -------- Run | Yrd Mat Min Exi Min Hostile Shots Fired 134 | . 45 13 . 76 Missed 37 | . 10 4 . 23 Damage Taken 1549 | . 430 122 . 997 Core 255 | . 52 . . 203 Absorbed by Shields . | . . . . . Regen/Repaired (Parts) 103 | . 103 . . . Core Remaining (%) 100 | 100 . . . . Volleys Fired 64 | 1 42 10 . 11 Largest 2 | 2 2 2 . 2 Hottest 130 | 40 40 130 . 130 Shots Fired 122 | 2 84 20 . 16 Gun 114 | 2 84 20 . 8 Cannon 4 | . . . . 4 Launcher 4 | . . . . 4 Special . | . . . . . Kinetic 91 | 2 84 4 . 1 Thermal 27 | . . 16 . 11 Explosive 4 | . . . . 4 Electromagnetic . | . . . . . Robot Hit Streak 18 | 1 6 18 . 4 Robot Miss Streak 8 | . 8 1 . 2 Penetration Max . | . . . . . Secondary Targets 1 | . 1 . . . Max Gunslinging Chain 1 | . 1 . . . Shots Hit Robots 73 | 1 47 16 . 9 Core Hits 64 | 2 24 9 . 29 Critical Kills . | . . . . . Critical Parts Destroyed . | . . . . . Critical Strikes 3 | . . 1 . 2 Burn 3 | . . 1 . 2 Melee Attacks . | . . . . . Impact . | . . . . . Slashing . | . . . . . Piercing . | . . . . . Sneak Attacks . | . . . . . Combat Hostiles . | . . . . . Follow-up Attacks . | . . . . . Damage Inflicted 1823 | 25 605 236 . 957 Guns 921 | 25 602 235 . 59 Cannons 69 | . . . . 69 Explosions 753 | . . . . 753 Melee . | . . . . . Ramming 80 | . 3 1 . 76 Kinetic 680 | 25 602 53 . . Thermal 310 | . . 182 . 128 Explosive 753 | . . . . 753 Electromagnetic . | . . . . . Impact . | . . . . . Slashing . | . . . . . Piercing . | . . . . . Highest Corruption 7 | . . . . 7 Average Corruption 4 | . . . . 4 Corruption Purged . | . . . . . Corruption Blocked . | . . . . . Overload Shots . | . . . . . Overflow Damage 26 | . . . . 26 Projectiles . | . . . . . Explosions 26 | . . . . 26 Melee . | . . . . . Knockbacks . | . . . . . Impact . | . . . . . Kinetic . | . . . . . Secondary . | . . . . . Self-Inflicted Damage 58 | . . . . 58 Shots 3 | . . . . 3 Rammed 4 | . 3 1 . . Targets Rammed 11 | . 3 1 . 7 Kicked 7 | . . . . 7 Crushed . | . . . . . Highest Temperature 117 | . 20 117 . 68 Average Temperature 28 | . 8 49 . 22 Received Heat Transfer 450 | . 258 72 . 120 Siege Activations . | . . . . . Robots Corrupted . | . . . . . Combat Hostiles . | . . . . . Parts Fried . | . . . . . Impact Corruptions . | . . . . . Robots Melted . | . . . . . Combat Hostiles . | . . . . . Parts Melted 1 | . . 1 . . Heat Transferred 926 | . . 494 . 432 Parts Sabotaged . | . . . . . Parts Stolen . | . . . . . Parts Stripped . | . . . . . Power Chain Reactions . | . . . . . Alert | -11 -10 -10 -10 -9 ------- Run | Yrd Mat Min Exi Min Peak Influence 260 | 5 260 89 . 22 Initial 3 | . 3 . . . Average 64 | . 78 43 . 6 Maximum Alert Level 1 | . 1 . . . Low Security (%) 92 | 100 88 100 . 100 Level 1 7 | . 11 . . . Level 2 . | . . . . . Level 3 . | . . . . . Level 4 . | . . . . . Level 5 . | . . . . . High Security . | . . . . . Max Security . | . . . . . Squads Dispatched . | . . . . . Investigation . | . . . . . Extermination . | . . . . . Reinforcement . | . . . . . Assault . | . . . . . Garrison . | . . . . . Intercept . | . . . . . Searches Triggered . | . . . . . Construction Impeded . | . . . . . Haulers Reinforced . | . . . . . Active Scanning Responses . | . . . . . Cargo Convoy Interrupts . | . . . . . Stealth | -11 -10 -10 -10 -9 --------- Run | Yrd Mat Min Exi Min Distress Signals 1 | . 1 . . . Communications Jammed . | . . . . . Distress Signals . | . . . . . Times Spotted 48 | . 22 6 . 20 Peak Tracking Total 20 | . 5 2 . 20 Tactical Retreats . | . . . . . Traps | -11 -10 -10 -10 -9 ------- Run | Yrd Mat Min Exi Min Traps Triggered . | . . . . . Indirectly . | . . . . . Trap Hack Attempts . | . . . . . Triggered . | . . . . . Disarmed . | . . . . . Reprogrammed . | . . . . . Reused . | . . . . . Traps Extracted . | . . . . . Installed . | . . . . . Triggered . | . . . . . Machines | -11 -10 -10 -10 -9 ---------- Run | Yrd Mat Min Exi Min Machines Disabled . | . . . . . Max in Single Turn . | . . . . . Machines Repaired . | . . . . . Machines Dismantled . | . . . . . Machines Sabotaged . | . . . . . Overloaded Fab Kills . | . . . . . Hacking | -11 -10 -10 -10 -9 --------- Run | Yrd Mat Min Exi Min Machines Accessed 11 | . 10 . 1 . Terminals 7 | . 7 . . . Fabricators . | . . . . . Repair Stations 1 | . 1 . . . Recycling Units 2 | . 2 . . . Scanalyzers . | . . . . . Garrison Access . | . . . . . Total Hacks 35 | . 34 . 1 . Successful 17 | . 16 . 1 . Failed 18 | . 18 . . . Catastrophic 4 | . 4 . . . Database Lockouts . | . . . . . Manual 25 | . 24 . 1 . Terminals 26 | . 26 . . . Fabricators . | . . . . . Repair Stations 2 | . 2 . . . Recycling Units 6 | . 6 . . . Scanalyzers . | . . . . . Garrison Access . | . . . . . Terminal Hacks 8 | . 7 . 1 . Robot Schematic 1 | . 1 . . . Robot Analysis 3 | . 3 . . . Prototype ID Bank 1 | . 1 . . . Locate Traps 2 | . 2 . . . Derelict Proto ID Bank 1 | . . . 1 . Fabricator Hacks . | . . . . . Repair Station Hacks 2 | . 2 . . . Scan Component 1 | . 1 . . . Repair 1 | . 1 . . . Recycling Unit Hacks 1 | . 1 . . . Retrieve Components 1 | . 1 . . . Scanalyzer . | . . . . . Garrison Access Hacks . | . . . . . Unauthorized Hacks 6 | . 6 . . . Terminals 6 | . 6 . . . Botnet 1 | . 1 . . . Skim 5 | . 5 . . . Fabricators . | . . . . . Repair Stations . | . . . . . Recycling Units . | . . . . . Scanalyzers . | . . . . . Garrison Access . | . . . . . Data Cores Recovered . | . . . . . Used . | . . . . . Hacking Detections 9 | . 9 . . . Full Trace Events . | . . . . . Feedback Events . | . . . . . Feedback Blocked . | . . . . . Robot Schematics Acquired 1 | . 1 . . . Robots Built . | . . . . . Authchips . | . . . . . Time . | . . . . . Total Robot Build Rating . | . . . . . Part Schematics Acquired . | . . . . . Parts Built . | . . . . . Authchips . | . . . . . Time . | . . . . . Total Part Build Rating . | . . . . . Parts Repaired 1 | . 1 . . . Time 26 | . 26 . . . Parts Recycled . | . . . . . Recycled Matter . | . . . . . Retrieved Matter . | . . . . . Retrieved Components . | . . . . . Parts Scanalyzed . | . . . . . Part Schematics Acquired . | . . . . . Parts Damaged . | . . . . . Bothacking | -11 -10 -10 -10 -9 ------------ Run | Yrd Mat Min Exi Min Used RIF Installer . | . . . . . Robots Hacked . | . . . . . Non-combat . | . . . . . Combat . | . . . . . Robot Hacks Applied . | . . . . . Relay Couplers Released . | . . . . . Fabnet Peak Effective % . | . . . . . Robots Rewired . | . . . . . Allies Hacked . | . . . . . Hacks Repelled . | . . . . . Allies | -11 -10 -10 -10 -9 -------- Run | Yrd Mat Min Exi Min Total Allies 3 | . . 3 . . Largest Group 3 | . . 3 . . Highest-Rated Group 40 | . . 40 . . Highest-Rated Ally 16 | . . 16 . . Total Orders . | . . . . . Ally Attacks 16 | . . 16 . . Total Damage 154 | . . 154 . . Kills 2 | . . 2 . . Allies Corrupted . | . . . . . Allies Melted . | . . . . . Intel | -11 -10 -10 -10 -9 ------- Run | Yrd Mat Min Exi Min Robot Analysis Total 3 | . 3 . . . Derelict Logs Recovered 1 | . . 1 . . Drone Launches . | . . . . . Drone Recoveries . | . . . . . Exploration | -11 -10 -10 -10 -9 ------------- Run | Yrd Mat Min Exi Min Turns Passed 2456 | 62 1414 650 281 49 Spaces Moved 1376 | 32 771 349 218 6 Core 3 | 3 . . . . Treads 1262 | 29 771 349 113 . Legs 111 | . . . 105 6 Wheels . | . . . . . Hover . | . . . . . Flight . | . . . . . Fastest Speed 50 | 50 160 160 90 90 Average Speed 154 | 149 160 160 126 90 Slowest Speed 170 | 160 160 160 170 90 Overloaded Moves . | . . . . . Propulsion Burnouts . | . . . . . Robots Hopped . | . . . . . Cave-ins Triggered . | . . . . . Exploration Rate (%) 50 | 3 98 83 61 6 Regions Visited 4 Branch Regions 3 Pre-discovered Areas . | . . . . . Known Exits Taken . | . . . . . Unknown Exits Taken 4 | 1 1 1 1 . Scrap Searched 1 | . . 1 . . Spaces Dug . | . . . . . Terrain Destroyed 29 | . . . . 29 Melee . | . . . . . Projectile . | . . . . . AOE 29 | . . . . 29 Terrain Rammed . | . . . . . Walls Destroyed . | . . . . . Machines Disabled . | . . . . . Actions | -11 -10 -10 -10 -9 --------- Run | Yrd Mat Min Exi Min Total 1587 | 41 865 424 223 34 Wait 85 | . 35 44 . 6 Move 1372 | 31 770 348 217 6 Hop . | . . . . . Pick Up 18 | 2 11 5 . . Fast Attach 13 | 7 . 4 2 . Attach 5 | . . 2 . 3 Detach 2 | . . 1 1 . Swap 5 | . 3 1 . 1 Drop 12 | . 1 8 3 . Fire 64 | 1 42 10 . 11 Melee . | . . . . . Ram . | . . . . . Kick 7 | . . . . 7 Crush 4 | . 3 1 . . Escape Stasis . | . . . . . Rewire . | . . . . . Trap . | . . . . . Miscellaneous . | . . . . . Route ------- -11/Scrapyard -10/Materials (discovered 5 exits: *Mat x3 / [*Min] / Sub) -10/Mines (discovered 4 exits: *Mat x2 / *Exi / Sub) -10/Exiles -9/Mines History --------- Turn | Location | Event 31 | -11/Scrapyard | Discovered new exit (range 16) 63 | -11/Scrapyard | Entered Materials 309 | -10/Materials | Build established: Mutant 389 | -10/Materials | Discovered new exit (range 7) 565 | -10/Materials | Discovered new exit (range 7) 775 | -10/Materials | Discovered new exit (range 8) 1191 | -10/Materials | Repaired Lgt. Treads 1217 | -10/Materials | Identified exit to Materials 1217 | -10/Materials | Identified exit to Subcaves 1311 | -10/Materials | Loaded intel: 1 repair station location 1345 | -10/Materials | Learned 2 Storage zone layouts 1407 | -10/Materials | Learned Storage stockpile data 1477 | -10/Materials | Entered Mines 1526 | -10/Mines | Discovered exit to Materials (range 8) 1617 | -10/Mines | Discovered exit to Materials (range 6) 1633 | -10/Mines | Assisted by bots powering up and referring to "LRC-V3" 1926 | -10/Mines | Learned 2 Materials zone layouts 2018 | -10/Mines | Build established: Scavenger-Mutant 2042 | -10/Mines | Deemed a non-threat by the Exiles lab entrance 2044 | -10/Mines | Discovered new exit (range 5) 2127 | -10/Mines | Entered Exiles 2166 | -10/Exiles | Met 8R-AWN 2193 | -10/Exiles | Met EX-HEX 2238 | -10/Exiles | Met EX-BIN 2257 | -10/Exiles | Aligned with FarCom system 2259 | -10/Exiles | Given EX-Vault access code 2297 | -10/Exiles | Opened EX-Vault 2309 | -10/Exiles | Found Potential Leg 2313 | -10/Exiles | Found Potential Leg 2334 | -10/Exiles | Warned to stay clear of 0b10 Research branches 2358 | -10/Exiles | Met EX-DEC 2397 | -10/Exiles | Discovered new exit (range 12) 2408 | -10/Exiles | Left Exiles lab with Potential Leg 2408 | -10/Exiles | Entered Mines 2409 | -9/Mines | Assembled infested the area 2431 | -9/Mines | Core integrity fell below 50% 2436 | -9/Mines | Core integrity fell below 20% 2457 | -9/Mines | Destroyed by as-29140 with Assembled Heavy Rifle Last Messages --------------- 02439_ as-73237 destroyed. 02439_ as-62613 destroyed. 02439_ as-97172 destroyed. 02442_ K-01 Serf collects debris. 02444_ as-47252 destroyed. 02444_ as-48875 destroyed. 02444_ Destroyed Asb. Hover Unit. 02444_ as-42373 destroyed. 02444_ as-71172 destroyed. 02444_ as-05917 destroyed. 02446_ The unstable cave ceiling collapses. 02446_ K-01 Serf collects debris. 02447_ as-00693 destroyed. 02449_ K-01 Serf collects debris. 02451_ The unstable cave ceiling collapses. 02451_ Beam Cannon destroyed. 02451_ System corrupted by crushing effect (+2). 02453_ K-01 Serf collects debris. 02454_ Sml. Laser destroyed. 02454_ System corrupted by crushing effect (+5). Map ----- +----------------------------------------------------+ | | | | | | | | | | | | | | | | | | | | | ???????????????????????????????????? | | ???????????????????????????????????? | | ???????????????????????????????????? | | ???????????????????????????????????? | | ???????????????????????????????????? | | ???????????????????????????????????? | | ???????????????????????????????????? | | ???????????????????????????????????? | | ??????????????????????????#######??? | | ??????????????????????????# #??? | | ????????????????????????### #??? | | ????????????????????????# # #??? | | ????????????????????????# ###? | | ?????????????###### ##### = #? | | ?????????? k a ##? | | ?????????? @ #? | | ??????????????########### %a a #? | | ????????????????????????## % ##?? | | ??????????????????????????# # #??? | | ??????????????????????????# ## ##??? | | ??????????????????????????# ## #??? | | ?????????????????????????? #?? | | ?????????????????????????? ???? | | ?????????????????????????? " ???? | | ?????????????????????????? ???? | | ??????????????????????????## #??? | | ????????????????????????????# ##??? | | ????????????????????????????? ????? | | ????????????????????????????? ????? | | ????????????????????????????? ????? | | ?????????????????????????????# ????? | | ???????????????????????????????????? | | ???????????????????????????????????? | | ???????????????????????????????????? | | ???????????????????????????????????? | | ???????????????????????????????????? | | ???????????????????????????????????? | | ???????????????????????????????????? | | ???????????????????????????????????? | | ???????????????????????????????????? | +----------------------------------------------------+ Best States ------------- Heat Dissipation 39 Energy Generation 14 Energy Capacity 250 Matter Stores 300 Matter Capacity 300 Sight Range 16 Terrain Scan Range 16 Terrain Scan Density 10 Evasion (%) 57 Recoil Reduction 2 Item Schematics ----------------- None Robot Schematics ------------------ M-13 Machinist | -10/Materials | Hacked Fabricated ------------ Nothing Alien Tech Used ----------------- None Achievements -------------- None Challenges ------------ None Game ------ Seed AssembledLegMapper Manual? 0 Play Time 00:16:31 Cumulative 172.1 hours Start 2024.12.24 @ 19:39:03 End 2024.12.24 @ 19:54:54 Sessions 1 Manual Loads 0 Difficulty Rogue Special Mode Winter2021/Sauler Game No. 88 Rogue 25 Adventurer 63 Explorer 0 Win Type - Total 8 Types 7/0/0/1/0/0/0/0/0 Lore% 70 Gallery% 69 Achievement% 57 Wizard Run 0 Options --------- Layout 1 ASCII 0 Keyboard 1 Movement Numpad Keybinds 0 Fullscreen 2 Font 24/Terminus Map View 50x35 Zoom Use 1% Tactical HUD 1 Map Filters NONE Filters NONE Steam 1 RUN: 7bd7de58-d200-43ad-8143-57b7e865b93a